fUSD/lending_fUSD_20250108
["ID","MTS","AMOUNT","RATE_DAILY","PERIOD"]
[348092927,1736307049533,-500.0,0.00011369,2]
[348092928,1736307049543,-1281.66,0.00011369,2]
[348092929,1736307049552,-865.29,0.00011369,2]
[348092930,1736307049562,-500.0,0.00011369,2]
[348092931,1736307049571,-763.72,0.00011369,2]
[348092932,1736307049581,-259.7393311,0.00011369,2]
[348092933,1736307049591,-1171.69,0.00011369,2]
[348092934,1736307049602,-1103.29,0.00011369,2]
[348092935,1736307049611,-642.61,0.00011369,2]
[348092936,1736307049621,-500.0,0.00011369,2]
[348092937,1736307049630,-500.0,0.00011369,2]
[348092938,1736307049641,-953.38,0.00011369,2]
[348092939,1736307049651,-2465.35,0.00011369,2]
[348092940,1736307049660,-627.45,0.00011369,2]
[348092941,1736307049671,-500.0,0.00011369,2]
[348092942,1736307049680,-500.0,0.00011369,2]
[348092943,1736307049690,-640.18,0.00011369,2]
[348092944,1736307049700,-644.21,0.00011369,2]
[348092945,1736307049709,-500.0,0.00011369,2]
[348092946,1736307049719,-500.0,0.00011369,2]
[348092947,1736307049728,-500.0,0.00011369,2]
[348092948,1736307049738,-1092.19,0.00011369,2]
[348092949,1736307049746,-500.0,0.00011369,2]
[348092950,1736307049756,-500.0,0.00011369,2]
[348092951,1736307049765,-150.0,0.00011381,2]
[348092952,1736307049777,-1331.66280675,0.00011383,2]
[348092953,1736307049787,-150.0,0.00011397,2]
[348092954,1736307049796,-250000.0,0.000114,2]
[348092955,1736307049805,-315.56856925,0.000114,2]
[348092956,1736307049814,-614.96692352,0.000114,2]
[348092957,1736307049823,-1331.66280675,0.00011452,2]
[348092958,1736307049832,-150.0,0.00011456,2]
[348092959,1736307049842,-150.0,0.00011485,2]
[348092960,1736307049851,-150.0,0.00011493,2]
[348092961,1736307049861,-204495.73279751,0.000115,2]
[348092962,1736307049870,-3000.0,0.000115,2]
[348092963,1736307049880,-2751.0,0.00011507,2]
[348092964,1736307049889,-1331.66280675,0.00011521,2]
[348092965,1736307049899,-153.0,0.00011526,2]
[348092966,1736307049908,-153.0,0.00011526,2]
[348092967,1736307049918,-153.0,0.00011526,2]
[348092968,1736307049927,-153.0,0.00011526,2]
[348092969,1736307049936,-153.0,0.00011526,2]
[348092970,1736307049948,-153.0,0.00011526,2]
[348092971,1736307049958,-153.0,0.00011526,2]
[348092972,1736307049967,-153.0,0.00011526,2]
[348092973,1736307049976,-153.0,0.00011526,2]
[348092974,1736307049987,-153.0,0.00011526,2]
[348092975,1736307049996,-153.0,0.00011529,2]
[348092976,1736307050006,-153.0,0.00011529,2]
[348092977,1736307050016,-153.0,0.00011529,2]
[348092978,1736307050026,-153.0,0.00011529,2]
[348092979,1736307050036,-153.0,0.00011529,2]
[348092980,1736307050045,-153.0,0.00011529,2]
[348092981,1736307050055,-153.0,0.00011529,2]
[348092982,1736307050065,-153.0,0.00011529,2]
[348092983,1736307050075,-153.0,0.00011529,2]
[348092984,1736307050084,-153.0,0.00011529,2]
[348092985,1736307050093,-153.0,0.00011531,2]
[348092986,1736307050103,-153.0,0.00011531,2]
[348092987,1736307050112,-153.0,0.00011531,2]
[348092988,1736307050121,-153.0,0.00011531,2]
[348092989,1736307050132,-153.0,0.00011531,2]
[348092990,1736307050141,-153.0,0.00011532,2]
[348092991,1736307050150,-153.0,0.00011532,2]
[348092992,1736307050159,-153.0,0.00011532,2]
[348092993,1736307050168,-153.0,0.00011532,2]
[348092994,1736307050177,-153.0,0.00011532,2]
[348092995,1736307050186,-315.56856925,0.00011533,2]
[348092996,1736307050195,-153.0,0.00011534,2]
[348092997,1736307050205,-153.0,0.00011534,2]
[348092998,1736307050214,-153.0,0.00011534,2]
[348092999,1736307050223,-153.0,0.00011534,2]
[348093000,1736307050234,-153.0,0.00011534,2]
[348093001,1736307050243,-153.0,0.00011534,2]
[348093002,1736307050253,-153.0,0.00011534,2]
[348093003,1736307050262,-153.0,0.00011534,2]
[348093004,1736307050274,-153.0,0.00011534,2]
[348093005,1736307050284,-153.0,0.00011534,2]
[348093006,1736307050293,-14508.10428721,0.00011567,2]
[348093007,1736307050303,-150.0,0.00011573,2]
[348093008,1736307050312,-1331.66280675,0.0001159,2]
[348093009,1736307050322,-845.30637334,0.0001159,2]
[348093010,1736307050331,-151.06,0.00011594,2]
[348093011,1736307050341,-365.0,0.000116,2]
[348093012,1736307050351,-607.0,0.000116,2]
[348093013,1736307050360,-1567.2735872,0.00011603,2]
[348093014,1736307050370,-150.0,0.00011604,2]
[348093015,1736307050379,-270.28870048,0.0001164,2]
[348093016,1736307050388,-632.35,0.0001164,2]
[348093017,1736307050398,-152.97999385,0.0001164,2]
[348093018,1736307050408,-500.0,0.0001164,2]
[348093019,1736307050417,-526.5701576,0.0001164,2]
[348093020,1736307050426,-2929.19,0.0001164,2]
[348093021,1736307050435,-586.3818142,0.0001164,2]
[348093022,1736307050445,-500.0,0.0001164,2]
[348093023,1736307050454,-548.43,0.0001164,2]
[348093024,1736307050463,-623.33,0.0001164,2]
[348093025,1736307050472,-500.0,0.0001164,2]
[348093026,1736307050482,-500.0,0.00011641,2]
[348093027,1736307050492,-500.0,0.00011641,2]
[348093028,1736307050502,-500.0,0.00011641,2]
[348093029,1736307050511,-500.0,0.00011641,2]
[348093030,1736307050524,-500.0,0.00011641,2]
[348093031,1736307050534,-500.0,0.00011641,2]
[348093032,1736307050544,-500.0,0.00011641,2]
[348093033,1736307050554,-505.77,0.00011641,2]
[348093034,1736307050563,-500.0,0.00011641,2]
[348093035,1736307050572,-563.86,0.00011641,2]
[348093036,1736307050582,-505.63,0.00011641,2]
[348093037,1736307050591,-500.0,0.00011641,2]
[348093038,1736307050601,-580.41,0.00011642,2]
[348093039,1736307050610,-1709.75,0.00011642,2]
[348093040,1736307050620,-1346.78,0.00011642,2]
[348093041,1736307050630,-1094.83,0.00011642,2]
[348093042,1736307050640,-500.0,0.00011642,2]
[348093043,1736307050650,-500.0,0.00011642,2]
[348093044,1736307050660,-500.0,0.00011642,2]
[348093045,1736307050670,-245.33677356,0.00011642,2]
[348093046,1736307050679,-500.0,0.00011642,2]
[348093047,1736307050688,-500.0,0.00011642,2]
[348093048,1736307050698,-500.0,0.00011642,2]
[348093049,1736307050710,-500.0,0.00011642,2]
[348093050,1736307050719,-579.82,0.00011642,2]
[348093051,1736307050730,-500.0,0.00011642,2]
[348093052,1736307050742,-500.0,0.00011642,2]
[348093053,1736307050752,-602.69,0.00011642,2]
[348093054,1736307050761,-500.0,0.00011642,2]
[348093055,1736307050773,-500.0,0.00011642,2]
[348093056,1736307050782,-500.0,0.00011642,2]
[348093057,1736307050791,-530.3343001,0.00011642,2]
[348093058,1736307050801,-1340.32,0.00011642,2]
[348093059,1736307050812,-500.0,0.00011642,2]
[348093060,1736307050822,-500.0,0.00011642,2]
[348093061,1736307050831,-448.71726728,0.00011642,2]
[348093062,1736307050841,-500.0,0.00011642,2]
[348093063,1736307050851,-500.0,0.00011642,2]
[348093064,1736307050860,-500.0,0.00011642,2]
[348093065,1736307050869,-500.0,0.00011642,2]
[348093066,1736307050879,-500.0,0.00011642,2]
[348093067,1736307050888,-1531.81,0.00011642,2]
[348093068,1736307050898,-500.0,0.00011642,2]
[348093069,1736307050908,-500.0,0.00011642,2]
[348093070,1736307050918,-500.0,0.00011642,2]
[348093071,1736307050928,-500.0,0.00011642,2]
[348093072,1736307050938,-500.0,0.00011642,2]
[348093073,1736307050950,-661.92,0.00011642,2]
[348093074,1736307050959,-500.0,0.00011642,2]
[348093075,1736307050968,-500.0,0.00011642,2]
[348093076,1736307050978,-500.0,0.00011642,2]
[348093077,1736307050989,-1131.08,0.00011642,2]
[348093078,1736307051000,-500.0,0.00011642,2]
[348093079,1736307051009,-500.0,0.00011642,2]
[348093080,1736307051023,-500.0,0.00011642,2]
[348093081,1736307051033,-591.8,0.00011642,2]
[348093082,1736307051044,-500.0,0.00011642,2]
[348093083,1736307051053,-500.0,0.00011642,2]
[348093084,1736307051062,-1376.58,0.00011642,2]
[348093085,1736307051071,-406.99420207,0.00011642,2]
[348093086,1736307051081,-2695.04,0.00011642,2]
[348093087,1736307051090,-482.98763976,0.00011642,2]
[348093088,1736307051100,-596.91,0.00011642,2]
[348093089,1736307051110,-500.0,0.00011642,2]
[348093090,1736307051120,-500.0,0.00011642,2]
[348093091,1736307051129,-559.58,0.00011642,2]
[348093092,1736307051139,-683.62,0.00011642,2]
[348093093,1736307051149,-500.0,0.00011642,2]
[348093094,1736307051159,-500.0,0.00011642,2]
[348093095,1736307051170,-500.0,0.00011642,2]
[348093096,1736307051181,-500.0,0.00011642,2]
[348093097,1736307051190,-834.01,0.00011642,2]
[348093098,1736307051200,-536.45,0.00011642,2]
[348093099,1736307051209,-500.0,0.00011642,2]
[348093100,1736307051219,-500.0,0.00011642,2]
[348093101,1736307051228,-571.27,0.00011642,2]
[348093102,1736307051238,-375.535364,0.00011642,2]
[348093103,1736307051247,-500.0,0.00011642,2]
[348093104,1736307051256,-500.0,0.00011642,2]
[348093105,1736307051266,-1637.45,0.00011642,2]
[348093106,1736307051276,-500.0,0.00011642,2]
[348093107,1736307051286,-591.52,0.00011642,2]
[348093108,1736307051295,-357.80011,0.00011642,2]
[348093109,1736307051305,-500.0,0.00011642,2]
[348093110,1736307051314,-1154.07,0.00011642,2]
[348093111,1736307051324,-824.08,0.00011642,2]
[348093112,1736307051333,-1705.56,0.00011642,2]
[348093113,1736307051343,-500.0,0.00011642,2]
[348093114,1736307051352,-688.7,0.00011642,2]
[348093115,1736307051362,-500.0,0.00011642,2]
[348093116,1736307051372,-500.0,0.00011642,2]
[348093117,1736307051382,-231.13684394,0.00011642,2]
[348093118,1736307051392,-628.18739176,0.00011642,2]
[348093119,1736307051402,-629.68,0.00011642,2]
[348093120,1736307051411,-500.0,0.00011642,2]
[348093121,1736307051421,-596.46,0.00011642,2]
[348093122,1736307051431,-511.11,0.00011642,2]
[348093123,1736307051440,-500.0,0.00011642,2]
[348093124,1736307051450,-170.32,0.00011642,2]
[348093125,1736307051460,-2190.99,0.00011642,2]
[348093126,1736307051469,-500.0,0.00011642,2]
[348093127,1736307051479,-916.93,0.00011642,2]
[348093128,1736307051488,-1026.98,0.00011642,2]
[348093129,1736307051497,-530.47,0.00011642,2]
[348093130,1736307051507,-1871.54,0.00011642,2]
[348093131,1736307051518,-500.0,0.00011642,2]
[348093132,1736307051528,-500.0,0.00011643,2]
[348093133,1736307051538,-1615.48,0.00011643,2]
[348093134,1736307051548,-523.61,0.00011643,2]
[348093135,1736307051558,-712.95,0.00011643,2]
[348093136,1736307051568,-577.06,0.00011643,2]
[348093137,1736307051577,-857.33,0.00011643,2]
[348093138,1736307051586,-565.44,0.00011643,2]
[348093139,1736307051596,-500.0,0.00011643,2]
[348093140,1736307051605,-1281.66,0.00011643,2]
[348093141,1736307051615,-865.29,0.00011643,2]
[348093142,1736307051624,-500.0,0.00011643,2]
[348093143,1736307051634,-763.72,0.00011643,2]
[348093144,1736307051644,-1171.69,0.00011643,2]
[348093145,1736307051653,-1103.29,0.00011643,2]
[348093146,1736307051663,-642.61,0.00011643,2]
[348093147,1736307051822,-500.0,0.00011643,2]
[348093148,1736307051839,-500.0,0.00011643,2]
[348093149,1736307051849,-953.38,0.00011643,2]
[348093150,1736307051858,-2465.35,0.00011643,2]
[348093151,1736307051869,-627.45,0.00011643,2]
[348093152,1736307051878,-500.0,0.00011643,2]
[348093153,1736307051887,-500.0,0.00011643,2]
[348093154,1736307051897,-640.18,0.00011643,2]
[348093155,1736307051907,-644.21,0.00011643,2]
[348093156,1736307051916,-500.0,0.00011643,2]
[348093157,1736307051926,-500.0,0.00011643,2]
[348093158,1736307051935,-500.0,0.00011643,2]
[348093159,1736307051947,-1092.19,0.00011643,2]
[348093160,1736307051956,-500.0,0.00011643,2]
[348093161,1736307051966,-500.0,0.00011643,2]
[348093162,1736307051975,-1331.66280675,0.00011659,2]
[348093163,1736307051985,-150.0,0.0001166,2]
[348093164,1736307051995,-150.0,0.0001166,2]
[348093165,1736307052004,-315.56856925,0.00011667,2]
[348093166,1736307052013,-17003.92190285,0.00011685,2]
[348093167,1736307052025,-150.0,0.00011716,2]
[348093168,1736307052035,-1331.66280675,0.00011728,2]
[348093169,1736307052044,-150.0,0.00011748,2]
[348093170,1736307052055,-916.0,0.00011748,2]
[348093171,1736307052065,-1000.0,0.0001178,2]
[348093172,1736307052075,-1331.66280675,0.00011797,2]
[348093173,1736307052084,-213.0,0.000118,5]
[348093174,1736307052093,-214.24,0.000118,6]
[348093175,1736307052103,-200.0,0.000118,7]
[348093176,1736307052113,-200.0,0.000118,2]
[348093177,1736307052122,-137725.19320319,0.000118,2]
[348093178,1736307052132,-315.56856925,0.000118,2]
[348093179,1736307052141,-614.96692351,0.000118,2]
[348093180,1736307052151,-214.263572,0.00011808,2]
[348093181,1736307052161,-157.78777211,0.00011814,2]
[348093182,1736307052170,-150.0,0.00011828,2]
[348093183,1736307052179,-150.0,0.00011836,2]
[348093184,1736307052188,-1567.2735872,0.00011847,2]
[348093185,1736307052198,-150.0,0.00011865,2]
[348093186,1736307052207,-1331.66280675,0.00011866,2]
[348093187,1736307052218,-780.99965146,0.00011878,2]
[348093188,1736307052230,-659990.86370688,0.0001188,2]
[348093189,1736307052242,-60000.000001,0.000119,3]
[348093190,1736307052253,-174.44564091,0.000119,2]
[348093191,1736307052264,-500.0,0.00011914,2]
[348093192,1736307052276,-2929.19,0.00011914,2]
[348093193,1736307052285,-500.0,0.00011914,2]
[348093194,1736307052294,-548.43,0.00011914,2]
[348093195,1736307052303,-623.33,0.00011914,2]
[348093196,1736307052313,-500.0,0.00011914,2]
[348093197,1736307052323,-500.0,0.00011915,2]
[348093198,1736307052332,-500.0,0.00011915,2]
[348093199,1736307052341,-500.0,0.00011915,2]
[348093200,1736307052351,-500.0,0.00011915,2]
[348093201,1736307052360,-500.0,0.00011915,2]
[348093202,1736307052370,-500.0,0.00011915,2]
[348093203,1736307052379,-500.0,0.00011915,2]
[348093204,1736307052389,-505.77,0.00011915,2]
[348093205,1736307052398,-181.38608155,0.00011915,2]
[348093206,1736307052408,-563.86,0.00011915,2]
[348093207,1736307052417,-505.63,0.00011915,2]
[348093208,1736307052426,-500.0,0.00011915,2]
[348093209,1736307052435,-580.41,0.00011916,2]
[348093210,1736307052444,-1709.75,0.00011916,2]
[348093211,1736307052453,-1346.78,0.00011916,2]
[348093212,1736307052463,-1094.83,0.00011916,2]
[348093213,1736307052473,-500.0,0.00011916,2]
[348093214,1736307052482,-500.0,0.00011916,2]
[348093215,1736307052492,-500.0,0.00011916,2]
[348093216,1736307052501,-500.0,0.00011916,2]
[348093217,1736307052510,-500.0,0.00011916,2]
[348093218,1736307052519,-500.0,0.00011916,2]
[348093219,1736307052531,-500.0,0.00011916,2]
[348093220,1736307052540,-579.82,0.00011916,2]
[348093221,1736307052549,-500.0,0.00011916,2]
[348093222,1736307052559,-500.0,0.00011916,2]
[348093223,1736307052568,-602.69,0.00011916,2]
[348093224,1736307052577,-500.0,0.00011916,2]
[348093225,1736307052587,-500.0,0.00011916,2]
[348093226,1736307052595,-500.0,0.00011916,2]
[348093227,1736307052605,-1340.32,0.00011916,2]
[348093228,1736307052614,-500.0,0.00011916,2]
[348093229,1736307052623,-500.0,0.00011916,2]
[348093230,1736307052633,-500.0,0.00011916,2]
[348093231,1736307052642,-500.0,0.00011916,2]
[348093232,1736307052652,-500.0,0.00011916,2]
[348093233,1736307052661,-500.0,0.00011916,2]
[348093234,1736307052671,-500.0,0.00011916,2]
[348093235,1736307052680,-1531.81,0.00011916,2]
[348093236,1736307052689,-500.0,0.00011916,2]
[348093237,1736307052700,-500.0,0.00011916,2]
[348093238,1736307052710,-500.0,0.00011916,2]
[348093239,1736307052719,-500.0,0.00011916,2]
[348093240,1736307052729,-500.0,0.00011916,2]
[348093241,1736307052739,-661.92,0.00011916,2]
[348093242,1736307052748,-500.0,0.00011916,2]
[348093243,1736307052758,-500.0,0.00011916,2]
[348093244,1736307052769,-436.54162488,0.00011916,2]
[348093245,1736307052778,-1131.08,0.00011916,2]
[348093246,1736307052789,-157.76209849,0.00011916,2]
[348093247,1736307052800,-500.0,0.00011916,2]
[348093248,1736307052812,-500.0,0.00011916,2]
[348093249,1736307052822,-591.8,0.00011916,2]
[348093250,1736307052832,-491.71779819,0.00011916,2]
[348093251,1736307052843,-500.0,0.00011916,2]
[348093252,1736307052853,-1376.58,0.00011916,2]
[348093253,1736307052863,-2695.04,0.00011916,2]
[348093254,1736307052874,-596.91,0.00011916,2]
[348093255,1736307052884,-324.22380014,0.00011916,2]
[348093256,1736307052894,-500.0,0.00011916,2]
[348093257,1736307052904,-559.58,0.00011916,2]
[348093258,1736307052914,-683.62,0.00011916,2]
[348093259,1736307052923,-500.0,0.00011916,2]
[348093260,1736307052933,-500.0,0.00011916,2]
[348093261,1736307052943,-500.0,0.00011916,2]
[348093262,1736307052956,-500.0,0.00011916,2]
[348093263,1736307052965,-834.01,0.00011916,2]
[348093264,1736307052975,-536.45,0.00011916,2]
[348093265,1736307052984,-500.0,0.00011916,2]
[348093266,1736307052994,-571.27,0.00011916,2]
[348093267,1736307053003,-500.0,0.00011916,2]
[348093268,1736307053013,-375.535364,0.00011916,2]
[348093269,1736307053027,-500.0,0.00011916,2]
[348093270,1736307053037,-500.0,0.00011916,2]
[348093271,1736307053047,-1637.45,0.00011916,2]
[348093272,1736307053057,-500.0,0.00011916,2]
[348093273,1736307053067,-591.52,0.00011916,2]
[348093274,1736307053076,-357.80011,0.00011916,2]
[348093275,1736307053085,-500.0,0.00011916,2]
[348093276,1736307053094,-1154.07,0.00011916,2]
[348093277,1736307053105,-824.08,0.00011916,2]
[348093278,1736307053115,-1705.56,0.00011916,2]
[348093279,1736307053125,-500.0,0.00011916,2]
[348093280,1736307053135,-688.7,0.00011916,2]
[348093281,1736307053144,-500.0,0.00011916,2]
[348093282,1736307053154,-500.0,0.00011916,2]
[348093283,1736307053163,-629.68,0.00011916,2]
[348093284,1736307053172,-500.0,0.00011916,2]
[348093285,1736307053182,-596.46,0.00011916,2]
[348093286,1736307053191,-511.11,0.00011916,2]
[348093287,1736307053201,-500.0,0.00011916,2]
[348093288,1736307053210,-2190.99,0.00011916,2]
[348093289,1736307053220,-500.0,0.00011916,2]
[348093290,1736307053229,-916.93,0.00011916,2]
[348093291,1736307053239,-1026.98,0.00011916,2]
[348093292,1736307053248,-530.47,0.00011916,2]
[348093293,1736307053258,-1871.54,0.00011916,2]
[348093294,1736307053267,-500.0,0.00011916,2]
[348093295,1736307053279,-500.0,0.00011917,2]
[348093296,1736307053288,-1615.48,0.00011917,2]
[348093297,1736307053298,-523.61,0.00011917,2]
[348093298,1736307053307,-712.95,0.00011917,2]
[348093299,1736307053316,-577.06,0.00011917,2]
[348093300,1736307053326,-857.33,0.00011917,2]
[348093301,1736307053336,-565.44,0.00011917,2]
[348093302,1736307053346,-500.0,0.00011917,2]
[348093303,1736307053355,-1281.66,0.00011917,2]
[348093304,1736307053364,-865.29,0.00011917,2]
[348093305,1736307053374,-500.0,0.00011917,2]
[348093306,1736307053383,-763.72,0.00011917,2]
[348093307,1736307053393,-1171.69,0.00011917,2]
[348093308,1736307053402,-1103.29,0.00011917,2]
[348093309,1736307053411,-642.61,0.00011917,2]
[348093310,1736307053421,-500.0,0.00011917,2]
[348093311,1736307053430,-500.0,0.00011917,2]
[348093312,1736307053440,-953.38,0.00011917,2]
[348093313,1736307053450,-2465.35,0.00011917,2]
[348093314,1736307053459,-627.45,0.00011917,2]
[348093315,1736307053469,-500.0,0.00011917,2]
[348093316,1736307053478,-500.0,0.00011917,2]
[348093317,1736307053488,-640.18,0.00011917,2]
[348093318,1736307053497,-644.21,0.00011917,2]
[348093319,1736307053507,-500.0,0.00011917,2]
[348093320,1736307053516,-500.0,0.00011917,2]
[348093321,1736307053529,-500.0,0.00011917,2]
[348093322,1736307053539,-1092.19,0.00011917,2]
[348093323,1736307053549,-500.0,0.00011917,2]
[348093324,1736307053558,-500.0,0.00011918,2]
[348093325,1736307053567,-5800.0,0.00011918,2]
[348093326,1736307053576,-500.0,0.00011918,2]
[348093327,1736307053585,-150.1386911,0.00011918,2]
[348093328,1736307053595,-260.35241381,0.00011918,2]
[348093329,1736307053604,-500.0,0.00011918,2]
[348093330,1736307053613,-150.0,0.00011918,2]
[348093331,1736307053623,-500.0,0.00011918,2]
[348093332,1736307053632,-150.05400819,0.00011918,2]
[348093333,1736307053641,-245.22273614,0.00011918,2]
[348093334,1736307053651,-500.0,0.00011918,2]
[348093335,1736307053660,-150.0,0.00011918,2]
[348093336,1736307053670,-3521.0,0.00011918,2]
[348093337,1736307053680,-150.0,0.00011923,2]
[348093338,1736307053689,-315.56856925,0.00011933,2]
[348093339,1736307053699,-1331.66280675,0.00011934,2]
[348093340,1736307053708,-150.0,0.00011939,2]
[348093341,1736307053718,-1000.0,0.00011961,2]
[348093342,1736307053727,-1000.0,0.00011961,2]
[348093343,1736307053736,-1000.0,0.00011961,2]
[348093344,1736307053746,-1000.0,0.00011961,2]
[348093345,1736307053756,-1000.0,0.00011961,2]
[348093346,1736307053765,-1000.0,0.00011961,2]
[348093347,1736307053776,-1000.0,0.00011961,2]
[348093348,1736307053787,-1000.0,0.00011961,2]
[348093349,1736307053796,-1000.0,0.00011961,2]
[348093350,1736307053806,-918.43301095,0.00011961,2]
[348093351,1736307053815,-501.99,0.00011969,2]
[348093352,1736307053824,-500.0,0.00011999,2]
[348093353,1736307053833,-1741941.11094313,0.00012,4]
[348093354,1736307054071,-1060.1863948,0.00012,4]
[348093355,1736307054098,-500.0,0.00011094,2]
[348093356,1736307054107,-500.0,0.00011917,2]
[348093357,1736307054116,-6500.0,0.00012,4]
[348093358,1736307054128,-9551.96517079,0.00012,4]
[348093359,1736307054139,-1572.82199258,0.00012,4]
[348093360,1736307054150,-467.52,0.00012,4]
[348093361,1736307054384,-499.16,0.0001,2]
[348093362,1736307054394,-709.22,0.00011095,2]
[348093363,1736307054404,-494.67958284,0.00011366,2]
[348093364,1736307054415,-48.75041716,0.00011366,2]
[348093365,1736307054426,-500.0,0.00011368,2]
[348093366,1736307054435,-500.0,0.00011368,2]
[348093367,1736307054445,-192.48300784,0.00011369,2]
[348093368,1736307054470,-516.73699216,0.00011369,2]
[348093369,1736307054480,-500.0,0.00011642,2]
[348093370,1736307054490,-709.22,0.00011643,2]
[348093371,1736307054500,-500.0,0.00011916,2]
[348093372,1736307054509,-709.22,0.00011917,2]
[348093373,1736307054519,-1804.92310784,0.00012,4]
[348093374,1736307054532,-642.97607776,0.00012,4]
[348093375,1736307054544,-1951.96369522,0.00012,4]
[348093376,1736307054573,-500.0,0.00011642,2]
[348093377,1736307054582,-1592.36763959,0.00012,4]
[348093378,1736307054594,-783.44824385,0.00012,4]
[348093379,1736307054606,-5395.78886413,0.00012,4]
[348093380,1736307055039,-547.85,0.000113,2]
[348093381,1736307055065,-476.67811274,0.000113,2]
[348093382,1736307055076,-537.31671453,0.000113,2]
[348093383,1736307055087,-153.0,0.00011524,2]
[348093384,1736307055097,-84.38882515,0.0001164,2]
[348093385,1736307055308,-500.0,9.999e-05,2]
[348093386,1736307055318,-153.0,0.00011524,2]
[348093387,1736307055328,-153.0,0.00011524,2]
[348093388,1736307055337,-153.0,0.00011524,2]
[348093389,1736307055350,-459.04117485,0.0001164,2]
[348093390,1736307055359,-543.43,0.00011914,2]
[348093391,1736307055369,-500.0,0.00011916,2]
[348093392,1736307055379,-27187.52882515,0.00012,4]
[348093393,1736307055392,-9311.04221422,0.00012,4]
[348093394,1736307055860,-270.775,9.999e-05,2]
[348093395,1736307055873,-229.225,9.999e-05,2]
[348093396,1736307055884,-500.0,9.999e-05,2]
[348093397,1736307055894,-500.0,0.00010272,2]
[348093398,1736307055904,-506.59393986,0.00010273,2]
[348093399,1736307055914,-500.0,0.00010546,2]
[348093400,1736307055923,-2.98699062,0.0001082,2]
[348093436,1736307177461,-2500.0,9.9e-05,2]
[348093437,1736307177486,-500.0,9.998e-05,2]
[348093438,1736307177511,-500.0,9.998e-05,2]
[348093439,1736307177535,-300.0,9.998e-05,2]
[348093440,1736307177559,-500.0,9.998e-05,2]
[348093441,1736307177586,-500.0,9.998e-05,2]
[348093442,1736307177610,-200.0,9.998e-05,2]
[348093875,1736308232448,-299.99,8.219e-05,2]
[348093876,1736308232478,-860.28,8.219e-05,2]
[348093877,1736308232489,-416.95888899,9.167e-05,2]
[348093878,1736308232501,-1497.91111101,9.167e-05,2]
[348093879,1736308232511,-343.46,9.211e-05,2]
[348093880,1736308232520,-209.8662461,9.254e-05,2]
[348093881,1736308232533,-8.663342,9.254e-05,2]
[348093882,1736308232726,-962.40884873,9.254e-05,2]
[348093883,1736308232738,-449.32685517,9.254e-05,2]
[348093884,1736308232750,-299.99,9.254e-05,2]
[348093885,1736308232761,-168.5909541,9.254e-05,2]
[348093886,1736308232771,-200.6927106,9.279e-05,2]
[348093887,1736308232784,-285.36,9.279e-05,2]
[348093888,1736308232794,-1000.0,9.345e-05,2]
[348093889,1736308232804,-250.0,9.407e-05,2]
[348093890,1736308232813,-430.58,9.417e-05,2]
[348093891,1736308232823,-200.69271058,9.639e-05,2]
[348093892,1736308232833,-170.37,9.744e-05,2]
[348093893,1736308232842,-150.0,9.863e-05,2]